Workbook

Sheet Menu
A1: Macros
A2: A | D2: =IF('001'!B3="","",'001'!B3) -> Blanquette de veau
A4: B | D4: =IF('002'!B3="","",'002'!B3) ->  | J4: Modèle
A6: CC | D6: =SI('003'!B3="";"";'003'!B3)
A8: D
A10: E
A12: F
A14: G | D14: =SI('007'!B3="";"";'007'!B3)
A16: H
A18: I
A20: J
A22: K
A24: L
A26: M | H26: NE RIEN MODIFIER !
A28: N
A30: O

Sheet Modèle
B2: Nom du plat | F2: Tps passé | H2: Nb portions
A3: V 7
C4: =IF(C8>1,C9,(C8*60)+C9) -> 0 | D4: =IF(D8>1,D9,(D8*60)+D9) -> 0 | E4: =IF(E8>1,E9,(E8*60)+E9) -> 0 | F4: =IF(F3>1,G3,(F3*60)+G3) -> 0 | H4: =IF(F8>1,F9,(F8*60)+F9) -> 0
C5: Matériels utilisés
C6: Four | D6: Micro-onde | E6: Robot | F6: Yaourtière
B7: Kw | C7: 2.3 | D7: 0.8 | E7: 0.9 | F7: 0.6
B8: Heures
B9: Minutes
B10: Coût | C10: =IF(C8="","",((B13*C7*C4)/H3)) ->  | D10: =IF(D8="","",((B13*D7*D4)/H3)) ->  | E10: =IF(E8="","",((B13*E7*E4)/H3)) ->  | F10: =IF(F8="","",((B13*F7*F4)/H3)) -> 
B12: Prix du Kw/h | C12: ="Total prix de revient des "&H3&" portions" -> Total prix de revient des portions | G12: =IF(H3="","",SUM(H26:H195)) -> 
B13: 0.145 | C13: Prix de revient unitaire avant autres coûts denrées | G13: =IF(H3="","",G12/H3) ->  | K13: => F25/I3
C14: Coût du temps passé pour une portion | G14: =IF(H3="","",(IF(G3="","",((B16/60)*F4)/H3))) ->  | K14: => fixe
B15: Prix horaire | C15: Coût en énergie pour une portion | G15: =IF(H3="","",(SUM(C10:I10)/H3)) ->  | K15: => fixe
B16: 9.76 | C16: Prix de revient unitaire TOTAL | G16: =IF(G13="","",SUM(G13:G15)) ->  | K16: => K11
C17: Prix de vente | G17: =IF(G16="","",(G16+(G16*25%))) ->  | J17: <= 25% de marge
C18: Ratio sur Prix de vente | G18: =IF(G16="","",G16/G17) ->  | K18: => somme G26 à G30
C19: Marge brute | G19: =IF(G16="","",G17-G16) ->  | K19: Le Modèle ne doit pas être modifié.
K20: => G32/G33 pourcentage entre prix de revient et prix de vente
B21: Conversion en temps | G21: =IF(G16="","",IF(E22>0.9,(1&" h "&(H22-60)&" mn"),(0&" h "&(H22)&" mn"))) -> 
D22: =IF(G16="","",G16/B16) ->  | E22: =IF(G16="","",ROUND(D22,1)) ->  | H22: =IF(G16="","",60*E22) -> 
B23: Ingrédients | K23: => G32- G31
B24: Genre | C24: Denrées | D24: Conditionnement | E24: Prix d'Achat | F24: Qté | G24: P.R.
K25: => G35- G36 marge - frais production
B26: Asaisonnement | C26: ail | D26: kg | E26: 7.99 | H26: =IF(F26="","",E26*F26) -> 
B27: Asaisonnement | C27: arôme naturel | D27: g | E27: 3.9
B28: Fruit | C28: banane | D28: kg | E28: 1.99
B29: Asaisonnement | C29: Beurre | D29: Kg | E29: 4
B30: Asaisonnement | C30: beurre | D30: kg | E30: 7.28
B31: Boisson | C31: boisson canette | D31: pce | E31: 0.5
B32: Asaisonnement | C32: Bouquet garni | D32: Pièce | E32: 0.02
B33: Fromage | C33: bûche chèvre | D33: kg | E33: 10.53
B34: Légume | C34: Carottes fraiches | D34: Kg | E34: 0.6
B35: Légume | C35: Céleri branche frais | D35: Kg | E35: 1.45
C36: Champignons de Paris frais | D36: Kg | E36: 2.6
C37: chocolat | D37: kg | E37: 9.27
B38: Fruit | C38: Citron | D38: Kg | E38: 1.8
B39: Asaisonnement | C39: Clous de girofle | D39: Pièce | E39: 0.01
B40: Légume | C40: courgette | D40: kg | E40: 1.99
B41: Laitage | C41: Crème épaisse | D41: Litre | E41: 2.5
B42: Laitage | C42: crème liquide entière | D42: l | E42: 3.85
B43: Fromage | C43: Emmental | D43: kg | E43: 10.5
B44: Viande | C44: Epaule de veau | D44: Kg | E44: 11
C45: Farine | D45: Kg | E45: 2.7
C46: farine | D46: kg | E46: 0.8
C47: ferments | D47: 4 sachets | E47: 3.61
B48: Fruit | C48: fève tonka | D48: kg | E48: 280
B49: Fruit | C49: grenade | D49: kg | E49: 4.99
B50: Asaisonnement | C50: Gros sel | D50: P.M | E50: 0.01
B51: Viande | C51: jambon blanc | D51: kg | E51: 15.95
B52: Laitage | C52: lait | D52: litre | E52: 0.89
B53: Laitage | C53: lait | D53: l | E53: 0.92
C54: lardons | D54: kg | E54: 13.2
C55: maïzena | D55: kg | E55: 3.63
C56: maïzena | D56: kg | E56: 7.28
B57: Fruit | C57: melon | D57: kg | E57: 4.99
C58: œuf | D58: pce | E58: 0.24 | H58: =IF(F58="","",E58*F58) -> 
C59: œuf | D59: pce | E59: 0.24
C60: Œufs frais | D60: Pièce | E60: 0.15
B61: Asaisonnement | C61: oignon | D61: kg | E61: 1.99
B62: Asaisonnement | C62: Oignons frais | D62: Kg | E62: 0.55
B63: Fruit | C63: orange | D63: kg | E63: 2.5
B64: Accompagnement | C64: Pain | D64: 1/5 baguette | E64: 0.2
B65: Fruit | C65: papaye | D65: kg | E65: 3.99
B66: Fromage | C66: parmesan | D66: kg | E66: 25.2
B67: Légume | C67: patate douce | D67: kg | E67: 2.99
C68: pâtes | D68: kg | E68: 2.5
B69: Asaisonnement | C69: Petits oignons frais | D69: Kg | E69: 2.1
B70: Légume | C70: Poireaux frais | D70: Kg | E70: 1.6
B71: Légume | C71: poivron | D71: kg | E71: 2.99
B72: Légume | C72: pulpe de tomate | D72: kg | E72: 4.5
B73: Légume | C73: riz | D73: kg | E73: 2.36
B74: Légume | C74: Riz haut de gamme | D74: Kg | E74: 6
B75: Légume | C75: riz pour risotto | D75: kg | E75: 3.76
B76: Légume | C76: salade | D76: kg | E76: 1.5
B77: Poisson | C77: saumon fumé | D77: kg | E77: 33.93
B78: Asaisonnement | C78: Sel fin, poivre blanc | D78: P.M | E78: 0.01
C79: sucre | E79: 0.89
C80: sucre | D80: kg | E80: 1.32
C81: Sucre semoule | D81: P.M
B82: Légume | C82: tomate | D82: kg | E82: 2.99
B83: Boisson | C83: vin blanc | D83: l | E83: 2.57
H90: =IF(F90="","",E90*F90) -> 
H122: =IF(F122="","",E122*F122) -> 
H154: =IF(F154="","",E154*F154) -> 
H186: =IF(F186="","",E186*F186) -> 

Sheet Ingrédients
A1: Code (?) | B1: Ingrédients | C1: Fournisseur | D1: Conditionnement | E1: Prix HT
B4: Carottes fraiches | C4: FRUITS & LEGUMES | D4: Kg | E4: 0.6
B5: Oignons frais | C5: FRUITS & LEGUMES | D5: Kg | E5: 0.55 | G5: Copier/Coller des 4 cellules correspondantes
B6: Clous de girofle | C6: EPICERIE | D6: Pièce | E6: 0.01 | G6: dans la fiche technique
B7: Poireaux frais | C7: FRUITS & LEGUMES | D7: Kg | E7: 1.6
B8: Céleri branche frais | C8: FRUITS & LEGUMES | D8: Kg | E8: 1.45
B9: Bouquet garni | C9: FRUITS & LEGUMES | D9: Pièce | E9: 0.02
B10: Beurre | C10: BOF | D10: Kg | E10: 4
B11: Farine | C11: EPICERIE | D11: Kg | E11: 2.7
B12: Crème épaisse | C12: BOF | D12: Litre | E12: 2.5
B13: Œufs frais | C13: BOF | D13: Pièce | E13: 0.15
B14: Champignons de Paris frais | C14: FRUITS & LEGUMES | D14: Kg | E14: 2.6
B15: Citron | C15: FRUITS & LEGUMES | D15: Kg | E15: 1.8
B16: Petits oignons frais | C16: FRUITS & LEGUMES | D16: Kg | E16: 2.1
B17: Sucre semoule | C17: EPICERIE | D17: P.M
B18: Gros sel | C18: EPICERIE | D18: P.M
B19: Sel fin, poivre blanc | C19: EPICERIE | D19: P.M
B20: Riz haut de gamme | C20: EPICERIE | D20: Kg | E20: 6
B23: beurre | D23: kg | E23: 7.28
B24: bûche chèvre | D24: kg | E24: 10.53
B25: chocolat | D25: kg | E25: 9.27
B26: crème liquide entière | D26: l | E26: 3.85
B27: Emmental | D27: kg | E27: 10.5
B28: farine | D28: kg | E28: 0.8
B29: lait | D29: l | E29: 0.92
B30: lardons | D30: kg | E30: 13.2
B31: maïzena | D31: kg | E31: 7.28
B32: œuf | D32: pce | E32: 0.24
B33: parmesan | D33: kg | E33: 25.2
B34: pâtes | D34: kg | E34: 2.5
B35: pulpe de tomate | D35: kg | E35: 4.5
B36: riz | D36: kg | E36: 2.36
B37: riz pour risotto | D37: kg | E37: 3.76
B38: sucre | D38: kg | E38: 1.32
B39: vin blanc | D39: l | E39: 2.57
B40: jambon blanc | D40: kg | E40: 15.95
B41: courgette | D41: kg | E41: 1.99
B42: poivron | D42: kg | E42: 2.99
B43: tomate | D43: kg | E43: 2.99
B44: oignon | D44: kg | E44: 1.99
B45: ail | D45: kg | E45: 7.99
B46: patate douce | D46: kg | E46: 2.99
B47: banane | D47: kg | E47: 1.99
B48: grenade | D48: kg | E48: 4.99
B49: papaye | D49: kg | E49: 3.99
B50: orange | D50: kg | E50: 2.5
B51: saumon fumé | D51: kg | E51: 33.93
B52: melon | D52: kg | E52: 4.99
B53: salade | D53: kg | E53: 1.5
B54: maïzena | D54: kg | E54: 3.63
B56: boisson canette | D56: pce | E56: 0.5

Sheet 001
B2: Nom du plat | F2: Tps passé | H2: Nb portions
A3: V 7 | B3: Blanquette de veau | F3: 0 | G3: 45 | H3: 10
C4: =IF(C8>1,C9,(C8*60)+C9) -> 0 | D4: =IF(D8>1,D9,(D8*60)+D9) -> 10 | E4: =IF(E8>1,E9,(E8*60)+E9) -> 25 | F4: =IF(F3>1,G3,(F3*60)+G3) -> 45 | H4: =IF(F8>1,F9,(F8*60)+F9) -> 0
C5: Matériels utilisés
C6: Four | D6: Micro-onde | E6: Robot | F6: Yaourtière
B7: Kw | C7: 3 | D7: 0.8 | E7: 0.9 | F7: 0.02
B8: Heures | D8: 0 | E8: 0
B9: Minutes | D9: 10 | E9: 25
B10: Coût | C10: =IF(C8="","",((B13*C7*C4)/H3)) ->  | D10: =IF(D8="","",((B13*D7*D4)/H3)) -> 0.116 | E10: =IF(E8="","",((B13*E7*E4)/H3)) -> 0.32625 | F10: =IF(F8="","",((B13*F7*F4)/H3)) -> 
B12: Prix du Kw/h | C12: ="Total prix de revient des "&H3&" portions" -> Total prix de revient des 10 portions | G12: =IF(H3="","",SUM(H26:H240)) -> 30.61625
B13: 0.145 | C13: Prix de revient unitaire avant autres coûts denrées | G13: =IF(H3="","",G12/H3) -> 3.061625 | K13: => F25/I3
C14: Coût du temps passé pour une portion | G14: =IF(H3="","",(IF(G3="","",((B16/60)*F4)/H3))) -> 0.732 | K14: => fixe
B15: Prix horaire | C15: Coût en énergie pour une portion | G15: =IF(H3="","",(SUM(C10:I10)/H3)) -> 0.044225 | K15: => fixe
B16: 9.76 | C16: Prix de revient unitaire TOTAL | G16: =IF(G13="","",SUM(G13:G15)) -> 3.83785 | K16: => K11
C17: Prix de vente | G17: =IF(G16="","",(G16+(G16*25%))) -> 4.7973125 | J17: <= 25% de marge
C18: Ratio sur Prix de vente | G18: =IF(G16="","",G16/G17) -> 0.8 | K18: => somme G26 à G30
C19: Marge brute | G19: =IF(G16="","",G17-G16) -> 0.9594625 | K19: Le Modèle ne doit pas être modifié.
K20: => G32/G33 pourcentage entre prix de revient et prix de vente
B21: Conversion en temps | G21: =IF(G16="","",IF(E22>0.9,(1&" h "&(H22-60)&" mn"),(0&" h "&(H22)&" mn"))) -> 0 h 24 mn
D22: =IF(G16="","",G16/B16) -> 0.3932223361 | E22: =IF(G16="","",ROUND(D22,1)) -> 0.4 | H22: =IF(G16="","",60*E22) -> 24
B23: Ingrédients | K23: => G32- G31
B24: Genre | C24: Denrées | D24: Conditionnement | E24: Prix d'Achat | F24: Qté | G24: P.R.
K25: => G35- G36 marge - frais production
B26: Asaisonnement | C26: ail | D26: kg | E26: 7.99 | H26: =IF(F26="","",E26*F26) -> 
B27: Asaisonnement | C27: arôme naturel | D27: g | E27: 3.9
B28: Fruit | C28: banane | D28: kg | E28: 1.99
B29: Asaisonnement | C29: Beurre | D29: Kg | E29: 4 | F29: 0.125 | H29: 0.5
B30: Asaisonnement | C30: beurre | D30: kg | E30: 7.28
B31: Asaisonnement | C31: beurre | D31: kg | E31: 7.28
B32: Boisson | C32: boisson canette | D32: pce | E32: 0.5
B33: Asaisonnement | C33: Bouquet garni | D33: Pièce | E33: 0.02 | F33: 1 | H33: 0.02
B34: Fromage | C34: bûche chèvre | D34: kg | E34: 10.53
B35: Légume | C35: Carottes fraiches | D35: Kg | E35: 0.6 | F35: 0.25 | H35: 0.15
B36: Légume | C36: Céleri branche frais | D36: Kg | E36: 1.45 | F36: 0.125 | H36: 0.18125
C37: Champignons de Paris frais | D37: Kg | E37: 2.6 | F37: 0.25 | H37: 0.65
C38: chocolat | D38: kg | E38: 9.27
B39: Fruit | C39: Citron | D39: Kg | E39: 1.8 | F39: 1 | H39: 1.8
B40: Asaisonnement | C40: Clous de girofle | D40: Pièce | E40: 0.01 | F40: 2 | H40: 0.02
B41: Légume | C41: courgette | D41: kg | E41: 1.99
B42: Laitage | C42: Crème épaisse | D42: Litre | E42: 2.5 | F42: 0.25 | H42: 0.625
B43: Laitage | C43: crème liquide entière | D43: l | E43: 3.85
B44: Fromage | C44: Emmental | D44: kg | E44: 10.5
B45: Viande | C45: Epaule de veau | D45: Kg | E45: 11 | F45: 2 | H45: 22
C46: farine | D46: kg | E46: 0.8
C47: Farine | D47: Kg | E47: 2.7 | F47: 0.075 | H47: 0.2025
C48: ferments | D48: 4 sachets | E48: 3.61
B49: Fruit | C49: fève tonka | D49: kg | E49: 280
B50: Fruit | C50: grenade | D50: kg | E50: 4.99
B51: Asaisonnement | C51: Gros sel | D51: P.M | E51: 0.01
B52: Viande | C52: jambon blanc | D52: kg | E52: 15.95
B53: Laitage | C53: lait | D53: litre | E53: 0.89
B54: Laitage | C54: lait | D54: l | E54: 0.92
C55: lardons | D55: kg | E55: 13.2
C56: maïzena | D56: kg | E56: 3.63
C57: maïzena | D57: kg | E57: 7.28
B58: Fruit | C58: melon | D58: kg | E58: 4.99 | H58: =IF(F58="","",E58*F58) -> 
C59: œuf | D59: pce | E59: 0.24
C60: œuf | D60: pce | E60: 0.24
C61: Œufs frais | D61: Pièce | E61: 0.15 | F61: 2 | H61: 0.3
B62: Asaisonnement | C62: oignon | D62: kg | E62: 1.99
B63: Asaisonnement | C63: Oignons frais | D63: Kg | E63: 0.55 | F63: 0.25 | H63: 0.1375
B64: Fruit | C64: orange | D64: kg | E64: 2.5
B65: Accompagnement | C65: Pain | D65: 1/5 baguette | E65: 0.2
B66: Fruit | C66: papaye | D66: kg | E66: 3.99
B67: Fromage | C67: parmesan | D67: kg | E67: 25.2
B68: Légume | C68: patate douce | D68: kg | E68: 2.99
C69: pâtes | D69: kg | E69: 2.5
B70: Asaisonnement | C70: Petits oignons frais | D70: Kg | E70: 2.1 | F70: 0.3 | H70: 0.63
B71: Légume | C71: Poireaux frais | D71: Kg | E71: 1.6 | F71: 0.25 | H71: 0.4
B72: Légume | C72: poivron | D72: kg | E72: 2.99
B73: Légume | C73: pulpe de tomate | D73: kg | E73: 4.5
B74: Légume | C74: riz | D74: kg | E74: 2.36
B75: Légume | C75: Riz haut de gamme | D75: Kg | E75: 6 | F75: 0.5 | H75: 3
B76: Légume | C76: riz pour risotto | D76: kg | E76: 3.76
B77: Légume | C77: salade | D77: kg | E77: 1.5
B78: Poisson | C78: saumon fumé | D78: kg | E78: 33.93
B79: Asaisonnement | C79: Sel fin, poivre blanc | D79: P.M | E79: 0.01
C80: sucre | E80: 0.89
C81: sucre | D81: kg | E81: 1.32
C82: sucre | D82: kg | E82: 1.32
C83: Sucre semoule | D83: P.M
B84: Légume | C84: tomate | D84: kg | E84: 2.99
B85: Boisson | C85: vin blanc | D85: l | E85: 2.57
C87: eau | D87: Test | E87: 0.2
C88: abat | D88: Test | E88: 1.25
C89: Bière | D89: Test | E89: 1.5
H90: =IF(F90="","",E90*F90) -> 
H122: =IF(F122="","",E122*F122) -> 
H154: =IF(F154="","",E154*F154) -> 
H186: =IF(F186="","",E186*F186) -> 

Sheet 002
B2: Nom du plat | F2: Tps passé | H2: Nb portions
A3: V 7
C4: =IF(C8>1,C9,(C8*60)+C9) -> 0 | D4: =IF(D8>1,D9,(D8*60)+D9) -> 0 | E4: =IF(E8>1,E9,(E8*60)+E9) -> 0 | F4: =IF(F3>1,G3,(F3*60)+G3) -> 0 | H4: =IF(F8>1,F9,(F8*60)+F9) -> 0
C5: Matériels utilisés
C6: Four | D6: Micro-onde | E6: Robot | F6: Yaourtière
B7: Kw | C7: 3 | D7: 0.8 | E7: 0.9 | F7: 0.02
B8: Heures
B9: Minutes
B10: Coût | C10: =IF(C8="","",((B13*C7*C4)/H3)) ->  | D10: =IF(D8="","",((B13*D7*D4)/H3)) ->  | E10: =IF(E8="","",((B13*E7*E4)/H3)) ->  | F10: =IF(F8="","",((B13*F7*F4)/H3)) -> 
B12: Prix du Kw/h | C12: ="Total prix de revient des "&H3&" portions" -> Total prix de revient des portions | G12: =IF(H3="","",SUM(H26:H195)) -> 
B13: 0.145 | C13: Prix de revient unitaire avant autres coûts denrées | G13: =IF(H3="","",G12/H3) ->  | K13: => F25/I3
C14: Coût du temps passé pour une portion | G14: =IF(H3="","",(IF(G3="","",((B16/60)*F4)/H3))) ->  | K14: => fixe
B15: Prix horaire | C15: Coût en énergie pour une portion | G15: =IF(H3="","",(SUM(C10:I10)/H3)) ->  | K15: => fixe
B16: 9.76 | C16: Prix de revient unitaire TOTAL | G16: =IF(G13="","",SUM(G13:G15)) ->  | K16: => K11
C17: Prix de vente | G17: =IF(G16="","",(G16+(G16*25%))) ->  | J17: <= 25% de marge
C18: Ratio sur Prix de vente | G18: =IF(G16="","",G16/G17) ->  | K18: => somme G26 à G30
C19: Marge brute | G19: =IF(G16="","",G17-G16) ->  | K19: Le Modèle ne doit pas être modifié.
K20: => G32/G33 pourcentage entre prix de revient et prix de vente
B21: Conversion en temps | G21: =IF(G16="","",IF(E22>0.9,(1&" h "&(H22-60)&" mn"),(0&" h "&(H22)&" mn"))) -> 
D22: =IF(G16="","",G16/B16) ->  | E22: =IF(G16="","",ROUND(D22,1)) ->  | H22: =IF(G16="","",60*E22) -> 
B23: Ingrédients | K23: => G32- G31
B24: Genre | C24: Denrées | D24: Conditionnement | E24: Prix d'Achat | F24: Qté | G24: P.R.
K25: => G35- G36 marge - frais production
B26: Fromage | C26: bûche chèvre | D26: kg | E26: 10.53 | H26: =IF(F26="","",E26*F26) -> 
B27: Asaisonnement | C27: Gros sel | D27: P.M | E27: 0.01
C28: Champignons de Paris frais | D28: Kg | E28: 2.6
B29: Laitage | C29: Crème épaisse | D29: Litre | E29: 2.5
B30: Asaisonnement | C30: Clous de girofle | D30: Pièce | E30: 0.01
B31: Asaisonnement | C31: arôme naturel | D31: g | E31: 3.9
B32: Viande | C32: Epaule de veau | D32: Kg | E32: 11
B33: Asaisonnement | C33: beurre | D33: kg | E33: 7.28
B34: Laitage | C34: lait | D34: l | E34: 0.92
C35: ferments | D35: 4 sachets | E35: 3.61
B36: Asaisonnement | C36: ail | D36: kg | E36: 7.99
B37: Fruit | C37: banane | D37: kg | E37: 1.99
B38: Asaisonnement | C38: Beurre | D38: Kg | E38: 4
B39: Boisson | C39: boisson canette | D39: pce | E39: 0.5
B40: Asaisonnement | C40: Bouquet garni | D40: Pièce | E40: 0.02
B41: Légume | C41: Carottes fraiches | D41: Kg | E41: 0.6
B42: Légume | C42: Céleri branche frais | D42: Kg | E42: 1.45
C43: chocolat | D43: kg | E43: 9.27
B44: Fruit | C44: Citron | D44: Kg | E44: 1.8
B45: Légume | C45: courgette | D45: kg | E45: 1.99
B46: Laitage | C46: crème liquide entière | D46: l | E46: 3.85
B47: Fromage | C47: Emmental | D47: kg | E47: 10.5
C48: Farine | D48: Kg | E48: 2.7
C49: farine | D49: kg | E49: 0.8
B50: Fruit | C50: fève tonka | D50: kg | E50: 280
B51: Fruit | C51: grenade | D51: kg | E51: 4.99
B52: Viande | C52: jambon blanc | D52: kg | E52: 15.95
B53: Laitage | C53: lait | D53: litre | E53: 0.89
C54: lardons | D54: kg | E54: 13.2
C55: maïzena | D55: kg | E55: 3.63
C56: maïzena | D56: kg | E56: 7.28
B57: Fruit | C57: melon | D57: kg | E57: 4.99
C58: œuf | D58: pce | E58: 0.24 | H58: =IF(F58="","",E58*F58) -> 
C59: œuf | D59: pce | E59: 0.24
C60: Œufs frais | D60: Pièce | E60: 0.15
B61: Asaisonnement | C61: oignon | D61: kg | E61: 1.99
B62: Asaisonnement | C62: Oignons frais | D62: Kg | E62: 0.55
B63: Fruit | C63: orange | D63: kg | E63: 2.5
B64: Accompagnement | C64: Pain | D64: 1/5 baguette | E64: 0.2
B65: Fruit | C65: papaye | D65: kg | E65: 3.99
B66: Fromage | C66: parmesan | D66: kg | E66: 25.2
B67: Légume | C67: patate douce | D67: kg | E67: 2.99
C68: pâtes | D68: kg | E68: 2.5
B69: Asaisonnement | C69: Petits oignons frais | D69: Kg | E69: 2.1
B70: Légume | C70: Poireaux frais | D70: Kg | E70: 1.6
B71: Légume | C71: poivron | D71: kg | E71: 2.99
B72: Légume | C72: pulpe de tomate | D72: kg | E72: 4.5
B73: Légume | C73: riz | D73: kg | E73: 2.36
B74: Légume | C74: Riz haut de gamme | D74: Kg | E74: 6
B75: Légume | C75: riz pour risotto | D75: kg | E75: 3.76
B76: Légume | C76: salade | D76: kg | E76: 1.5
B77: Poisson | C77: saumon fumé | D77: kg | E77: 33.93
B78: Asaisonnement | C78: Sel fin, poivre blanc | D78: P.M | E78: 0.01
C79: sucre | E79: 0.89
C80: sucre | D80: kg | E80: 1.32
C81: Sucre semoule | D81: P.M
B82: Légume | C82: tomate | D82: kg | E82: 2.99
B83: Boisson | C83: vin blanc | D83: l | E83: 2.57
H90: =IF(F90="","",E90*F90) -> 
H122: =IF(F122="","",E122*F122) -> 
H154: =IF(F154="","",E154*F154) -> 
H186: =IF(F186="","",E186*F186) -> 
